bitfinex/quotes_ETHUSD_20240614
["timestamp","ask_amount","ask_price","bid_price","bid_amount"]
[1718332924471,2.3887,3496.2,3495.3,0.26934693]
[1718332924769,2.3887,3496.2,3495.4,0.15993288]
[1718332926746,4.45,3496.5,3495.4,0.15993288]
[1718332926946,4.45,3496.5,3495.3,0.32655994]
[1718332927696,15.38,3497.0,3495.4,0.15993288]
[1718332927697,1.604,3496.2,3495.4,0.15993288]
[1718332927845,3.03744514,3496.2,3495.4,0.15993288]
[1718332928177,3.03744514,3496.2,3494.1,2.2639]
[1718332928178,3.03744514,3496.2,3494.2,0.59435633]
[1718332928381,3.03744514,3496.2,3494.3,1.43344514]
[1718332928679,0.52940451,3496.1,3494.4,1.02917015]
[1718332928880,0.52940451,3496.1,3494.5,1.49066745]
[1718332929039,0.52940451,3496.1,3494.5,2.13850061]
[1718332929378,0.52940451,3496.1,3494.6,2.32111857]
[1718332929560,0.52940451,3496.1,3494.7,1.98344514]
[1718332929740,0.52940451,3496.1,3494.8,0.61761613]
[1718332929945,0.52940451,3496.1,3494.9,0.70487277]
[1718332930179,0.52940451,3496.1,3495.0,0.05721858]
[1718332930474,2.2566,3496.3,3495.1,2.19544513]
[1718332930673,2.2566,3496.3,3495.1,0.21199999]
[1718332931465,2.2566,3496.3,3495.1,0.15478143]
[1718332932476,2.2566,3496.3,3495.2,0.05721432]
[1718332932849,2.2566,3496.3,3495.3,0.15467689]
[1718332933174,2.64266,3496.3,3495.3,0.15467689]
[1718332934141,0.2867727,3496.7,3495.3,0.21189119]
[1718332934340,2.6748727,3496.7,3495.4,2.8304]
[1718332934578,2.6748727,3496.7,3495.5,0.21172105]
[1718332936758,2.6748727,3496.7,3495.5,0.21172106]
[1718332937080,0.42788727,3496.6,3495.5,0.21172106]
[1718332938774,0.42788727,3496.6,3495.5,0.1545107]
[1718332939547,0.42788727,3496.6,3495.5,0.21172038]
[1718332939765,2.3881,3496.7,3495.5,0.21172038]
[1718332940168,2.3881,3496.7,3495.5,0.1545107]
[1718332941977,3.0,3497.0,3495.6,0.55]
[1718332942348,3.0,3497.0,3495.7,0.15423885]
[1718332942548,3.0,3497.0,3495.6,0.55]
[1718332942752,1.14117,3496.9,3495.7,0.42638451]
[1718332942953,1.14117,3496.9,3495.7,0.58062336]
[1718332943267,1.14117,3496.9,3495.7,0.42638451]
[1718332946289,1.14117,3496.9,3495.8,0.1541932]
[1718332946502,1.14117,3496.9,3495.7,2.4152]
[1718332946793,8.4117,3497.1,3495.8,0.1541932]
[1718332946981,8.4117,3497.1,3495.7,2.4152]
[1718332947180,8.4117,3497.1,3495.8,0.15417558]
[1718332947492,3.9617,3497.1,3495.7,2.4152]
[1718332947694,0.39617,3497.0,3495.7,2.85506451]
[1718332951798,0.39617,3497.0,3495.7,2.4152]
[1718332952894,0.668,3496.5,3495.7,2.4152]
[1718332953310,4.45,3496.9,3495.8,0.15414915]
[1718332953600,0.668,3496.7,3495.9,2.2811]
[1718332953805,0.668,3496.7,3496.0,0.15405786]
[1718332955866,4.45,3496.9,3496.0,0.15405786]
[1718332955867,4.45,3496.9,3496.0,0.5215804]
[1718332956172,5.118,3496.9,3496.0,0.5215804]
[1718332957792,4.45,3496.9,3496.1,0.668]
[1718332957985,4.45,3496.9,3496.2,2.55276658]
[1718332958188,4.45,3496.9,3496.3,0.49645275]
[1718332958399,0.668,3497.1,3496.4,0.15387532]
[1718332959124,4.45,3497.3,3496.4,0.15387532]
[1718332959125,0.668,3497.2,3496.4,0.15387532]
[1718332959422,4.45,3497.3,3496.4,0.15387532]
[1718332959423,0.668,3497.0,3496.4,0.15387532]
[1718332960079,4.45,3497.3,3496.4,0.15387532]
[1718332960276,0.668,3497.1,3496.4,0.15387532]
[1718332960471,0.668,3497.1,3496.4,0.52558813]
[1718332963400,0.668,3497.1,3496.4,0.15387532]
[1718332963711,0.668,3496.9,3496.2,2.3988]
[1718332963880,0.668,3496.9,3496.5,0.15345106]
[1718332964085,0.668,3496.9,3496.2,2.3988]
[1718332965687,0.668,3496.7,3496.2,2.3988]
[1718332965882,0.668,3496.7,3496.3,0.15354232]
[1718332966199,0.668,3496.7,3496.2,2.3988]
[1718332966404,0.668,3496.7,3496.3,0.15363037]
[1718332966721,0.668,3496.7,3496.2,2.3988]
[1718332967013,0.668,3496.7,3496.3,0.15363037]
[1718332967309,0.668,3496.7,3496.2,2.3988]
[1718332967512,0.31284,3496.9,3496.4,0.15358474]
[1718332967679,0.31284,3496.9,3496.3,0.15363037]
[1718332967680,0.668,3496.7,3496.3,0.15363037]
[1718332967882,0.668,3496.7,3496.2,2.3988]
[1718332968106,0.668,3496.7,3496.3,0.15363037]
[1718332968514,0.668,3496.7,3496.2,2.3988]
[1718332968695,0.668,3496.7,3496.4,0.15358474]
[1718332968881,0.668,3496.7,3496.3,0.15363037]
[1718332969080,0.668,3496.7,3496.2,2.3988]
[1718332969301,0.668,3496.7,3496.3,0.15363037]
[1718332969710,0.668,3496.7,3495.8,2.2933]
[1718332969875,0.668,3496.7,3496.4,0.15361997]
[1718332970086,0.668,3496.7,3495.8,2.2933]
[1718332970277,0.668,3496.7,3495.9,0.15384815]
[1718332975724,0.31284,3496.9,3495.9,0.15384815]
[1718332976081,0.668,3496.6,3495.9,0.15384815]
[1718332984822,0.31284,3496.9,3495.9,0.15384815]
[1718332985133,0.668,3496.6,3495.9,0.15384815]
[1718332985331,0.31284,3496.9,3495.9,0.15384815]
[1718332985496,0.668,3496.6,3495.9,0.15384815]
[1718332995027,0.31284,3496.9,3495.9,0.15384815]
[1718332995333,0.668,3496.5,3495.9,0.15384815]
[1718333001765,2.4203,3496.6,3495.9,0.15384815]
[1718333001931,2.3827,3496.4,3495.9,0.15384815]
[1718333002132,2.3827,3496.4,3495.1,2.4255]
[1718333002372,0.668,3495.6,3495.1,2.4255]
[1718333002648,0.668,3495.6,3495.2,0.15436586]
[1718333004279,0.668,3495.6,3494.8,2.4255]
[1718333004570,0.668,3495.6,3494.9,1.01414355]
[1718333005141,0.668,3495.4,3494.9,0.15479355]
[1718333009629,0.668,3495.0,3494.9,0.15479355]
[1718333009962,0.668,3495.0,3494.2,2.4732]
[1718333010196,2.4736,3495.6,3494.2,2.4732]
[1718333010197,0.668,3494.8,3494.2,2.4732]
[1718333010398,0.668,3494.8,3494.3,0.15551247]
[1718333010603,0.668,3494.8,3494.2,2.4732]
[1718333010898,0.668,3494.8,3494.3,0.15551247]
[1718333011101,0.668,3494.8,3494.2,2.4732]
[1718333011322,0.668,3494.8,3494.3,0.15551247]
[1718333011492,0.668,3494.8,3494.2,2.4732]
[1718333012618,7.45,3495.4,3494.2,2.72052]
[1718333012820,0.668,3495.2,3494.4,2.4596]
[1718333013220,0.668,3495.2,3494.5,0.15559735]
[1718333013420,0.668,3495.0,3494.5,0.15559735]
[1718333018621,7.45,3495.4,3494.5,0.15559735]
[1718333018948,7.45,3495.4,3494.6,0.05722723]
[1718333019170,7.45,3495.4,3494.9,2.4351]
[1718333019452,7.45,3496.0,3495.3,0.668]
[1718333019601,7.45,3496.0,3495.6,0.668]
[1718333019806,7.45,3496.0,3495.9,2.2671]
[1718333020033,7.45,3496.9,3495.9,2.2671]
[1718333020301,12.38,3497.4,3496.4,0.668]
[1718333020302,7.45,3497.4,3496.4,0.668]
[1718333020505,7.45,3497.4,3496.6,0.668]
[1718333020807,0.745,3497.4,3496.5,0.05719416]
[1718333021012,7.45,3497.8,3496.5,0.05719416]
[1718333021434,7.45,3497.8,3496.3,2.2671]
[1718333021634,8.88344514,3497.8,3496.3,2.2671]
[1718333021952,1.602,3497.4,3495.7,3.0]
[1718333022153,3.03544514,3497.4,3495.8,2.8268]
[1718333022351,1.98620965,3497.3,3495.8,2.43116515]
[1718333022570,1.602,3497.0,3495.8,2.43116515]
[1718333022750,3.03544514,3497.0,3495.8,2.43116515]
[1718333022952,3.03544514,3497.0,3495.8,2.2768]
[1718333023133,3.92564514,3496.9,3495.0,2.2768]
[1718333023333,3.92564514,3496.9,3495.1,0.15468474]
[1718333023334,0.85386451,3496.8,3495.1,0.15468474]
[1718333023536,1.43344514,3496.7,3495.1,0.15468474]
[1718333026383,1.602,3496.6,3495.1,0.15468474]
[1718333027047,1.43344514,3496.7,3495.1,0.15468474]
[1718333028708,1.43344514,3496.7,3495.2,0.0572137]
[1718333028861,0.63815097,3496.6,3495.3,0.15459341]
[1718333029386,0.63815097,3496.6,3495.3,0.21180709]
[1718333029862,0.63815097,3496.6,3495.3,0.15459341]
[1718333031759,0.63815097,3496.6,3495.4,2.2743]
[1718333031960,0.30940155,3496.5,3495.4,2.56328958]
[1718333032160,0.30940155,3496.5,3495.5,0.15433015]
[1718333033456,0.30940155,3496.5,3495.4,2.2743]
[1718333035689,3.85386451,3496.8,3495.4,2.2743]
[1718333035862,5.28730965,3496.8,3495.4,2.2743]
[1718333040609,0.85386451,3496.8,3495.5,0.05721209]
[1718333040789,0.85386451,3496.8,3495.6,2.3077]
[1718333041303,0.85386451,3496.8,3495.7,0.15416839]
[1718333041619,1.23980645,3496.7,3495.7,0.15416839]
[1718333041762,7.45,3496.9,3495.8,2.4361]
[1718333041968,7.45,3496.9,3495.8,2.4933065]
[1718333044819,7.45,3496.9,3495.9,0.15403746]
[1718333046986,6.9546,3497.2,3495.9,0.15403746]
[1718333047190,8.38804514,3497.2,3495.9,0.15403746]
[1718333047393,1.58380451,3497.1,3495.8,2.4361]
[1718333051016,0.668,3496.6,3495.8,2.4361]
[1718333051398,0.668,3496.7,3495.9,0.15397582]
[1718333052022,1.58380451,3497.1,3495.9,0.01197582]
[1718333052183,0.668,3496.6,3495.8,2.4361]
[1718333052383,0.668,3496.6,3496.0,0.14919684]
[1718333052584,0.668,3496.6,3495.8,2.4361]
[1718333052816,0.668,3496.6,3496.1,0.1491512]
[1718333053115,0.668,3496.6,3495.8,2.4361]
[1718333053318,0.668,3496.6,3496.2,0.14898669]
[1718333053522,0.668,3496.6,3495.8,2.4361]
[1718333053685,0.668,3496.6,3496.3,0.14894106]
[1718333053880,0.668,3496.6,3495.8,2.4361]
[1718333054104,0.668,3496.6,3496.4,0.14889543]
[1718333054407,0.668,3496.6,3495.8,2.4361]
[1718333054731,0.668,3496.6,3495.9,0.31041]
[1718333055028,0.668,3496.6,3495.9,0.45953361]
[1718333057920,1.71932995,3497.0,3495.9,0.45953361]
[1718333058235,0.668,3496.7,3495.9,0.31041]
[1718333058593,0.668,3496.7,3496.0,0.14909999]
[1718333059936,0.668,3496.7,3496.0,0.43866099]
[1718333062324,0.668,3496.7,3496.0,0.14909999]
[1718333062694,0.668,3496.7,3495.8,2.4361]
[1718333063324,0.668,3496.7,3495.9,0.14912802]
[1718333063933,0.668,3496.5,3495.9,0.14912802]
[1718333064829,0.668,3496.8,3496.0,2.4365]
[1718333065034,0.983733,3496.8,3496.0,2.4365]
[1718333065200,1.651733,3496.8,3496.1,0.14910275]
[1718333065919,0.983733,3496.8,3496.1,0.14910275]
[1718333066124,1.651733,3496.8,3496.1,0.14910275]
[1718333068553,0.983733,3496.8,3496.1,0.14910275]
[1718333068766,0.668,3496.7,3496.1,0.14910275]
[1718333069263,1.5781733,3496.7,3496.1,0.14910275]
[1718333073279,1.5781733,3496.7,3496.0,2.4365]
[1718333073649,1.5781733,3496.7,3496.1,0.14910275]
[1718333074075,1.5781733,3496.7,3496.0,2.4365]
[1718333074572,1.5781733,3496.7,3496.1,0.14910275]
[1718333074771,1.13855173,3496.6,3496.1,0.14910275]
[1718333074991,1.13855173,3496.6,3496.0,2.4365]
[1718333075149,1.13855173,3496.6,3496.2,0.14905712]
[1718333075472,1.80655173,3496.6,3496.3,0.14901148]
[1718333075852,1.80655173,3496.6,3496.0,2.4365]
[1718333076055,1.80655173,3496.6,3496.4,0.14896585]
[1718333076362,0.2716725,3496.5,3496.4,0.14896585]
[1718333076556,0.2716725,3496.5,3496.0,2.4365]
[1718333076754,0.668,3496.6,3496.0,2.4365]
[1718333088883,0.9101733,3496.7,3496.0,2.4365]
[1718333089200,0.9101733,3496.7,3496.1,0.14907194]
[1718333096095,0.668,3496.6,3496.1,0.14907194]
[1718333100292,0.9101733,3496.7,3496.1,0.14907194]
[1718333100595,0.668,3496.7,3496.1,0.14907194]
[1718333106304,0.668,3496.2,3496.1,0.14907194]
[1718333106807,0.668,3496.2,3495.2,2.3099]
[1718333107110,0.668,3495.5,3495.3,0.14943274]
[1718333107466,0.668,3495.5,3495.2,2.3099]
[1718333107862,1.80265499,3496.2,3495.3,0.14943274]
[1718333108107,0.668,3495.6,3495.3,0.14943274]
[1718333108330,0.668,3495.6,3495.2,2.3099]
[1718333108498,0.668,3495.6,3495.4,0.14957644]
[1718333108806,0.668,3495.6,3495.5,0.14958804]
[1718333109101,0.668,3495.6,3495.2,2.3099]
[1718333109301,0.668,3495.6,3495.5,0.14959685]
[1718333109510,0.668,3495.6,3495.2,2.3099]
[1718333109969,0.668,3495.6,3495.3,0.14968816]
[1718333110169,0.668,3495.6,3495.2,2.3099]
[1718333110385,0.668,3495.6,3495.3,0.14970137]
[1718333110585,0.668,3495.6,3495.2,2.3099]
[1718333110794,0.668,3495.6,3495.3,0.14970137]
[1718333111000,0.668,3495.6,3495.2,2.3099]
[1718333111306,0.668,3495.6,3495.3,0.14970137]
[1718333111695,0.56425006,3496.1,3495.2,2.3099]
[1718333111696,0.668,3495.7,3495.2,2.3099]
[1718333111847,0.30301501,3496.0,3495.4,0.14968655]
[1718333112047,0.668,3495.7,3495.2,2.3099]
[1718333112272,0.668,3495.7,3495.3,0.14974983]
[1718333112688,0.668,3495.7,3495.2,2.3099]
[1718333113062,0.668,3495.7,3495.3,0.14974983]
[1718333113549,0.668,3495.7,3495.2,2.3099]
[1718333113885,0.668,3495.6,3495.3,0.14974983]
[1718333114307,0.668,3495.6,3495.2,2.3099]
[1718333114690,0.668,3495.6,3495.3,0.14974983]
[1718333115060,0.668,3495.6,3495.2,2.3099]
[1718333115371,0.668,3495.6,3495.3,0.14974983]
[1718333115769,0.668,3495.6,3495.2,2.3099]
[1718333116020,0.668,3495.6,3495.3,0.14974983]
[1718333116159,0.668,3495.6,3495.2,2.3099]
[1718333116359,0.668,3495.6,3495.3,0.14974983]
[1718333116555,0.668,3495.4,3495.3,0.14974983]
[1718333116820,0.668,3495.4,3494.5,2.3222]
[1718333117102,0.668,3494.9,3494.5,2.3222]
[1718333117595,0.668,3494.9,3494.6,0.15061567]
[1718333118760,0.668,3494.9,3494.3,2.3222]
[1718333118960,0.668,3494.9,3494.4,0.15070703]
[1718333119405,2.3776,3495.2,3494.4,0.15070703]
[1718333119704,0.668,3495.0,3494.4,0.15070703]
[1718333120263,0.23776,3495.1,3494.4,0.15070703]
[1718333120464,0.90576,3495.1,3494.4,0.15070703]
[1718333123901,0.668,3495.0,3494.4,0.15070703]
[1718333125197,0.668,3494.8,3494.4,0.15070703]
[1718333128822,0.668,3494.8,3494.0,5.4689]
[1718333129102,0.668,3494.8,3494.1,3.1510688]
[1718333129285,0.668,3494.8,3494.1,0.1510688]
[1718333129606,0.668,3494.8,3494.1,3.1510688]
[1718333130184,0.668,3494.8,3494.1,0.1510688]
[1718333131392,0.668,3494.7,3494.1,0.1510688]
[1718333132692,0.23776,3495.1,3494.1,0.41306568]
[1718333132883,7.45,3495.5,3494.2,2.2758]
[1718333133212,0.668,3495.2,3494.2,2.2758]
[1718333133414,0.668,3495.2,3494.3,0.15136517]
[1718333133621,0.668,3495.2,3494.4,2.2758]
[1718333133781,0.668,3495.2,3494.5,0.1512738]
[1718333137932,7.45,3495.6,3494.5,0.46078118]
[1718333138222,0.668,3495.2,3494.4,2.2758]
[1718333139091,7.45,3495.6,3494.5,2.3782]
[1718333139422,8.118,3495.6,3494.7,2.3782]
[1718333139724,8.118,3495.6,3494.8,0.15101337]
[1718333139929,0.8118,3495.5,3494.8,0.15101337]
[1718333140421,0.668,3495.4,3494.7,2.3782]
[1718333145097,0.668,3495.2,3494.7,2.3782]
[1718333149414,0.8118,3495.5,3494.7,2.3782]
[1718333149629,0.668,3495.3,3494.7,2.3782]
[1718333151660,2.3549,3495.6,3494.7,2.3782]
[1718333151865,0.668,3495.3,3494.7,2.3782]
[1718333155132,0.668,3495.3,3494.8,0.15092965]
[1718333155335,0.668,3495.3,3494.7,2.3782]
[1718333155540,0.97029,3495.3,3494.7,2.3782]
[1718333163476,0.668,3495.3,3494.7,2.3782]
[1718333169459,0.668,3495.3,3494.1,0.59435633]
[1718333169460,2.9878,3495.3,3494.3,2.3333]
[1718333169794,2.9878,3495.3,3494.4,0.15112559]
[1718333169795,0.668,3494.6,3494.4,0.15112559]
[1718333170166,0.668,3494.6,3494.1,2.3333]
[1718333170366,0.668,3494.6,3494.5,0.1511416]
[1718333170562,0.96678,3494.6,3493.8,2.2887]
[1718333170884,0.96678,3494.6,3493.9,0.15141573]
[1718333171292,0.668,3494.4,3493.9,0.15141573]
[1718333171659,0.96678,3494.6,3493.9,0.15141573]
[1718333171995,0.668,3494.6,3493.9,0.15141573]
[1718333177983,0.668,3494.4,3493.9,0.15141573]
[1718333179215,2.3198,3494.8,3493.9,0.15141573]
[1718333179559,0.668,3494.5,3493.9,0.15141573]
[1718333180171,2.3198,3494.8,3493.9,0.15141573]
[1718333180390,0.668,3494.6,3493.9,0.15141573]
[1718333181875,7.45,3495.0,3494.0,1.49068609]
[1718333182175,7.45,3495.0,3494.7,0.668]
[1718333182506,7.45,3495.0,3494.8,2.3584]
[1718333182704,7.45,3495.0,3494.8,2.5098806]
[1718333183482,7.45,3495.0,3494.8,0.1514806]
[1718333183974,7.45,3495.0,3494.5,2.399]
[1718333184180,7.45,3495.0,3494.9,0.15128505]
[1718333184681,7.45,3495.0,3494.3,2.3483]
[1718333184898,7.45,3495.0,3494.4,0.15151343]
[1718333187614,0.668,3495.2,3494.4,0.15151343]
[1718333188216,2.4887,3495.3,3494.4,0.20874584]
[1718333188396,0.668,3495.4,3494.5,0.62250458]
[1718333189077,0.668,3495.4,3494.5,1.29050458]
[1718333189273,7.45,3495.7,3494.9,0.668]
[1718333190075,8.118,3495.7,3494.7,2.9836]
[1718333190321,8.118,3495.7,3494.8,0.36061046]
[1718333190611,8.118,3495.7,3494.8,0.51179572]
[1718333193494,0.668,3495.7,3494.8,0.51179572]
[1718333193727,7.45,3496.1,3494.9,0.05722273]
[1718333193885,10.4035,3496.5,3495.5,0.668]
[1718333194084,1.71800139,3496.4,3495.6,2.3182]
[1718333194396,7.45,3496.8,3495.7,0.72521101]
[1718333194734,7.45,3496.8,3495.9,0.668]
[1718333195026,8.118,3496.8,3495.9,0.668]
[1718333195190,8.118,3496.8,3495.6,2.3182]
[1718333195526,8.118,3496.8,3495.7,0.81877431]
[1718333195685,0.668,3496.6,3495.7,0.81877431]
[1718333199584,0.668,3496.6,3495.7,0.15077431]
[1718333200712,7.45,3496.8,3495.7,0.15077431]
[1718333200898,0.668,3496.7,3495.7,0.15077431]
[1718333201098,0.668,3496.7,3495.7,0.81877431]
[1718333201293,0.668,3496.7,3495.8,0.31369743]
[1718333208439,0.668,3496.7,3495.9,3.0383]
[1718333209270,0.668,3496.7,3495.9,2.3703]
[1718333209963,0.668,3496.5,3495.2,2.3703]
[1718333210140,0.668,3496.5,3495.6,0.668]
[1718333210307,0.668,3496.5,3495.7,2.51991123]
[1718333210509,0.668,3496.5,3495.8,0.31879112]
[1718333210714,0.668,3496.5,3495.9,0.14951993]
[1718333212016,0.668,3496.7,3495.9,0.14951993]
[1718333212515,0.668,3496.7,3495.8,0.31879112]
[1718333217027,0.668,3496.5,3495.7,2.3703]
[1718333217343,0.668,3496.5,3495.8,0.14956558]
[1718333217655,2.396,3496.9,3495.8,0.14956558]
[1718333217878,0.668,3496.6,3495.7,3.0383]
[1718333218393,0.668,3496.6,3495.8,0.14956558]
[1718333218534,0.668,3496.6,3495.7,3.0383]
[1718333218535,1.11774451,3496.6,3495.7,3.0383]
[1718333218735,1.11774451,3496.6,3495.8,0.14956558]
[1718333219042,1.11774451,3496.6,3495.7,3.0383]
[1718333219248,1.11774451,3496.6,3495.9,0.14951993]
[1718333219571,1.11774451,3496.6,3495.7,3.0383]
[1718333219776,0.44974451,3496.6,3495.7,3.0383]
[1718333219938,1.11774451,3496.6,3495.8,0.14956558]
[1718333220268,0.25511896,3496.5,3495.7,3.0383]
[1718333220772,0.25511896,3496.5,3495.8,0.14956558]
[1718333220973,0.25511896,3496.5,3495.7,3.0383]
[1718333221470,0.25511896,3496.5,3495.8,0.14956558]
[1718333221862,0.25511896,3496.5,3495.7,3.0383]
[1718333222061,0.25511896,3496.5,3495.9,0.14951993]
[1718333222367,0.25511896,3496.5,3495.7,3.0383]
[1718333222671,0.25511896,3496.5,3496.0,0.14954476]
[1718333222870,1.11774451,3496.6,3495.7,3.0383]
[1718333223267,1.11774451,3496.6,3495.8,0.14963604]
[1718333223636,1.11774451,3496.6,3495.7,3.0383]
[1718333223873,1.11774451,3496.6,3495.9,0.1495904]
[1718333224052,0.44974451,3496.6,3495.8,0.14963604]
[1718333224363,0.668,3496.6,3495.7,3.0383]
[1718333224571,0.668,3496.6,3495.8,0.14963604]
[1718333224775,0.668,3496.6,3495.7,3.0383]
[1718333225138,0.668,3496.6,3495.8,0.14963604]
[1718333225336,0.668,3496.6,3495.7,3.0383]
[1718333225563,0.668,3496.6,3495.8,0.14963604]
[1718333225762,0.668,3496.6,3495.7,3.34213]
[1718333226072,0.668,3496.6,3495.8,0.14963604]
[1718333226372,2.3415,3496.5,3495.8,0.14963604]
[1718333226675,2.3415,3496.5,3495.4,3.0762]
[1718333226676,0.668,3496.4,3495.4,3.0762]
[1718333226986,0.668,3496.4,3495.5,0.30762]
[1718333227277,0.668,3496.4,3495.5,0.457393]
[1718333234641,0.668,3496.2,3495.5,0.149773]
[1718333234884,0.668,3496.2,3495.2,0.668]
[1718333235040,0.668,3496.2,3495.6,0.15000923]
[1718333235438,0.668,3496.2,3495.2,0.668]
[1718333235665,0.668,3496.2,3495.7,0.14996358]
[1718333235896,0.668,3496.2,3495.2,0.668]
[1718333236092,0.668,3496.2,3495.8,0.14991793]
[1718333236295,0.668,3496.2,3495.2,0.668]
[1718333236671,2.4776,3496.3,3495.3,0.1501462]
[1718333236877,0.668,3496.2,3495.3,0.1501462]
[1718333243560,2.4776,3496.3,3495.4,0.668]
[1718333243832,2.4776,3496.3,3495.5,0.15005488]
[1718333244057,10.5751,3496.6,3495.6,2.305]
[1718333244219,10.5751,3496.6,3495.6,2.70623585]
[1718333246245,3.1251,3496.6,3495.6,2.70623585]
[1718333248541,0.668,3496.4,3495.6,2.70623585]
[1718333249204,2.4571,3496.6,3495.6,2.70623585]
[1718333249404,0.668,3496.5,3495.6,2.55622662]
[1718333249635,0.668,3496.5,3495.7,0.14991072]
[1718333256619,0.668,3496.3,3495.7,0.14991072]
[1718333258224,5.013323,3496.6,3495.7,0.14991072]
[1718333258438,0.668,3496.4,3495.7,0.14991072]
[1718333261450,6.38703849,3496.6,3495.7,0.14991072]
[1718333261754,0.668,3496.4,3495.7,0.14991072]
[1718333262923,0.83150212,3496.5,3495.7,0.14991072]
[1718333263139,0.668,3496.4,3495.7,0.14991072]
[1718333266050,0.83150212,3496.5,3495.7,0.14991072]
[1718333266357,1.49950212,3496.5,3495.7,0.14991072]
[1718333269957,0.668,3496.4,3495.7,0.14991072]
[1718333272329,1.06366021,3496.4,3495.7,0.14991072]
[1718333274449,2.4571,3496.6,3495.7,0.14991072]
[1718333274657,0.668,3496.5,3495.7,0.14991072]
[1718333278748,4.25865621,3496.6,3495.7,0.14991072]
[1718333279077,0.668,3496.5,3495.7,0.14991072]
[1718333280279,2.10181764,3496.9,3496.4,2.4936]
[1718333280280,1.37357884,3496.9,3496.4,2.4936]
[1718333280579,2.2837,3497.7,3496.9,2.4936]
[1718333280580,7.45,3497.5,3496.9,2.4936]
[1718333280754,7.45,3497.5,3497.2,0.668]
[1718333280952,7.45,3497.5,3497.4,3.0646]
[1718333281153,1.37357884,3497.8,3497.4,3.0646]
[1718333281377,1.37357884,3498.0,3497.4,2.3966]
[1718333281682,7.45,3498.1,3497.5,0.81678118]
[1718333281883,7.45,3498.1,3497.5,1.17030713]
[1718333282268,7.45,3498.1,3497.5,0.50230713]
[1718333284351,0.668,3498.3,3497.5,0.50230713]
[1718333284670,0.668,3498.3,3497.5,0.35352595]
[1718333284846,0.668,3498.3,3497.6,0.14873558]
[1718333285449,7.45,3498.5,3497.6,0.14873558]
[1718333285680,7.45,3498.5,3497.4,2.3966]
[1718333285681,0.668,3498.2,3497.4,2.3966]
[1718333285855,0.668,3498.2,3497.7,0.14868998]
[1718333286184,0.745,3498.4,3497.4,2.3966]
[1718333286386,8.88344514,3498.5,3497.4,2.3966]
[1718333286588,8.88344514,3498.5,3497.5,0.14830578]
[1718333286788,7.45,3498.5,3497.5,0.72518031]
[1718333287177,8.118,3498.5,3497.5,0.72518031]
[1718333287369,7.45,3498.5,3497.4,2.3966]
[1718333287567,0.668,3498.4,3497.5,0.23966]
[1718333287906,0.668,3498.3,3497.6,0.14826018]
[1718333289082,7.45,3498.5,3497.6,0.14826018]
[1718333289270,0.668,3498.3,3497.5,0.23966]
[1718333289471,0.668,3498.3,3497.7,0.14821458]
[1718333289805,0.668,3498.3,3497.5,0.23966]
[1718333289987,0.668,3498.3,3497.8,0.14816899]
[1718333290170,0.668,3498.3,3497.6,0.330426]
[1718333290367,0.668,3498.3,3497.9,0.14812339]
[1718333290566,0.668,3498.3,3497.6,0.38760078]
[1718333290767,7.45,3498.5,3497.6,0.38760078]
[1718333290972,7.45,3498.5,3497.8,2.2656]
[1718333291299,8.117,3498.5,3497.8,2.2656]
[1718333292619,7.45,3498.5,3497.8,2.2656]
[1718333292806,8.117,3498.5,3497.8,2.2656]
[1718333295635,7.45,3498.5,3497.8,2.2656]
[1718333295791,0.667,3498.4,3497.8,2.2656]
[1718333296297,0.667,3498.4,3497.9,0.14718132]
[1718333301958,7.45,3498.5,3497.9,0.14718132]
[1718333302464,7.45,3498.5,3497.8,2.2656]
[1718333303013,7.45,3498.5,3497.8,2.55886]
[1718333303546,8.117,3498.5,3497.8,2.55886]
[1718333303940,8.117,3498.5,3497.8,2.2656]
[1718333305744,7.45,3498.5,3497.8,2.2656]
[1718333306348,0.667,3498.4,3497.8,2.2656]
[1718333306745,0.667,3498.4,3497.9,0.14706252]
[1718333307965,7.45,3498.5,3497.9,0.14706252]
[1718333308146,8.117,3498.5,3497.9,0.14706252]
[1718333308345,8.117,3498.5,3497.8,2.2656]
[1718333309262,7.45,3498.5,3497.8,2.2656]
[1718333309462,8.117,3498.5,3497.8,2.2656]
[1718333309860,7.45,3498.5,3497.8,2.2656]
[1718333310170,8.117,3498.5,3497.8,2.55886]
[1718333312354,7.45,3498.5,3497.9,0.667]
[1718333312560,7.45,3498.5,3498.0,2.3518]
[1718333313653,0.667,3498.8,3498.0,2.3518]
[1718333314089,8.82293992,3498.9,3498.0,2.3518]
[1718333314384,0.667,3498.8,3498.0,2.65368]
[1718333317691,7.45,3498.9,3498.3,2.3945]
[1718333317873,0.667,3499.2,3498.4,0.05716402]
[1718333318188,7.5702487,3499.3,3498.5,2.3945]
[1718333318402,7.5702487,3499.3,3498.6,0.3118664]
[1718333318609,7.5702487,3499.3,3498.7,2.3945]
[1718333318769,8.2372487,3499.3,3497.4,3.0]
[1718333318971,8.2372487,3499.3,3497.3,3.39535302]
[1718333318972,0.667,3499.1,3497.6,2.4263]
[1718333319188,0.667,3498.9,3498.1,2.4263]
[1718333319591,8.82293992,3499.2,3498.2,0.14653425]
[1718333319592,0.667,3498.7,3498.2,0.14653425]
[1718333320301,3.49417465,3499.1,3498.2,0.14653425]
[1718333320302,0.667,3498.8,3498.2,0.14653425]
[1718333323489,3.0,3499.1,3498.2,0.14653425]
[1718333323690,0.667,3498.8,3498.2,0.14653425]
[1718333324371,1.43794886,3499.0,3498.2,0.14653425]